[Event "28th Hit Open-A 2024"]
[Site "Nova Gorica"]
[Date "2024.01.28"]
[Round "4.11"]
[White "Pirs, Matjaz"]
[Black "Herega, Nejc"]
[Result "1-0"]
[ECO "B51"]
[WhiteElo "1965"]
[BlackElo "2257"]
[Annotator "TA"]
[PlyCount "53"]
[EventDate "2024.01.22"]
[EventType "swiss"]
[EventCountry "SLO"]
[SourceTitle "playchess.com"]
[Source "ChessBase"]
[SourceQuality "1"]
[TimeControl "5400+30"]

{[%evp 11,52,25,45,34,23,13,6,10,12,-6,0,-15,-10,-23,-33,-26,23,33,40,6,49,-83,-75,-61,-35,-11,-32,-37,-44,-65,0,0,0,-14,45,0,91,7,7,0,398,402,29999]} 1. e4 {[%emt 0:00:04]} c5 {[%emt 0:00:10]} 2. Nf3 {[%emt 0:00:38]} d6 {[%emt 0:00:14]} 3. Bb5+ {[%emt 0:01:15]} Nd7 {[%emt 0:00:06]} 4. O-O {[%emt 0:00:57]} Ngf6 {[%emt 0:00:48]} 5. Re1 {[%emt 0:01:21]} e6 {[%emt 0:01:22]} 6. c3 {[%emt 0:04:41]} a6 {[%emt 0:01:21]} 7. Bf1 {[%emt 0:02:57]} b5 {[%emt 0:06:55]} 8. a4 {[%emt 0:04:34]} Bb7 {[%emt 0:04:24]} 9. d3 {[%emt 0:18:30][%cal Bd2d3,Bd3c4][%mdl 32] The position is equal.} Be7 {[%emt 0:14:36]} 10. h3 {[%emt 0:18:21]} O-O {[%emt 0:14:57]} 11. Bf4 {[%emt 0:04:08]} Bc6 {[%emt 0:05:48]} 12. a5 {[%emt 0:12:54]} e5 {[%emt 0:06:23]} 13. Bh2 {[%emt 0:02:28] [#]} c4 {[%emt 0:07:34]} 14. dxc4 $11 {[%emt 0:05:32]} Nxe4 {[%emt 0:01:14]} 15. Nfd2 {[%emt 0:07:25]} Ng5 {[%emt 0:07:54]} 16. f4 {[%emt 0:03:49] [#]} (16. cxb5 $14 {keeps the upper hand.} axb5 17. b4) 16... exf4 $1 $17 {[%emt 0:05:10]} 17. Bxf4 {[%emt 0:00:08]} Ne5 {[%emt 0:01:14]} 18. Na3 {[%emt 0:01:37]} Ne6 {[%emt 0:01:34]} 19. Be3 {[%emt 0:01:27]} Bh4 {[%emt 0:02:06]} (19... Qxa5 20. Nxb5 Qd8 21. Nd4 $11) 20. Re2 {[%emt 0:01:01][%cal Od2e4]} Nd3 {[%emt 0:04:19]} (20... Qxa5 21. Nxb5 $11) (20... Qf6 $1 $15) 21. Nb3 {[%emt 0:01:17]} Ndf4 {[%emt 0:01:06] White must now prevent ...b4.} 22. Rd2 {[%emt 0:00:52]} Qf6 {[%emt 0:03:26]} (22... Bg5 $1 $11 23. Bf2 bxc4 24. Nxc4 (24. Rxd6 Qc7 $15) 24... Qf6) 23. Nd4 {[%emt 0:02:28]} ({Stronger than} 23. Rxd6 Rad8 24. Rd2 (24. cxb5 $2 Nxh3+ 25. gxh3 Bf3 $19) 24... Bg5 $19) 23... Nxd4 {[%emt 0:04:20]} (23... Be4 $1 $11) 24. Bxd4 {[%emt 0:00:26]} (24. Rxd4 $16 Ne6 25. cxb5 axb5 26. Bxb5 (26. Rxd6 Rad8 $16) 26... Bxb5 27. Nxb5 Nxd4 28. Bxd4) 24... Qg5 $11 {[%emt 0:02:06]} 25. Qg4 {[%emt 0:00:24] aiming for Be3.} Nxh3+ $2 {[%emt 0:00:41][%mdl 8192]} 26. gxh3 $18 {[%emt 0:00:14]} Qxd2 {[%emt 0:00:21]} (26... bxc4 $18 27. Nxc4 Qxg4+ 28. hxg4 Be7) 27. Qxg7# {[%emt 0:00:06] Weighted Error Value: White=0.25 (precise) /Black=0.66.  Loses game:     	---       	Black=1      Mistake:       	White=2     	Black=5      Inaccurate:     	White=2     	Black=2      OK:         	White=6     	Black=7      Best:        	White=1     	Black=1      Strong:       	---       	Black=1} 1-0

[Event "28th Hit Open-A 2024"]
[Site "Nova Gorica"]
[Date "2024.01.28"]
[Round "4.12"]
[White "Perossa, Nicolas"]
[Black "Privitera, Franco"]
[Result "1-0"]
[ECO "C18"]
[WhiteElo "2277"]
[BlackElo "1919"]
[Annotator "TA"]
[PlyCount "81"]
[EventDate "2024.01.22"]
[EventType "swiss"]
[EventCountry "SLO"]
[SourceTitle "playchess.com"]
[Source "ChessBase"]
[SourceQuality "1"]
[TimeControl "5400+30"]

{[%evp 23,81,109,119,114,127,117,106,104,122,118,193,116,137,144,148,133,127,108,175,10,159,177,169,131,116,33,70,71,82,23,71,12,186,185,186,181,233,208,208,122,128,91,242,241,222,221,200,17,16,24,304,189,398,408,313,14,12,19,18,0]} 1. e4 {[%emt 0:00:53]} e6 {[%emt 0:00:11]} 2. d4 {[%emt 0:00:05]} d5 {[%emt 0:00:08]} 3. Nc3 {[%emt 0:00:07]} Bb4 {[%emt 0:00:07]} 4. e5 {[%emt 0:00:20]} c5 {[%emt 0:00:09]} 5. a3 {[%emt 0:00:25]} Ba5 {[%emt 0:00:38]} 6. b4 {[%emt 0:02:39][%cal Bb2b4,Bb4a5,Ba5a6][%mdl 32]} cxd4 {[%emt 0:00:12]} 7. Qg4 {[%emt 0:01:25]} Ne7 {[%emt 0:01:22]} 8. bxa5 {[%emt 0:01:14]} dxc3 {[%emt 0:00:30]} 9. Qxg7 {[%emt 0:02:49]} Rg8 {[%emt 0:00:13]} 10. Qxh7 {[%emt 0:00:07]} Nbc6 {[%emt 0:02:01]} 11. Nf3 {[%emt 0:00:21]} Qc7 {[%emt 0:02:32]} 12. Bf4 {[%emt 0:01:25]} Bd7 {[%emt 0:00:30][%cal Oe8c8]} 13. a6 $1 {[%emt 0:01:07] Droht axb7 und aus.} b6 {[%emt 0:07:17]} 14. Bg3 {[%emt 0:03:37]} O-O-O {[%emt 0:05:10]} 15. Bd3 {[%emt 0:02:20][%cal Oh7h4] Weiß steht besser.} (15. Qxf7 Nf5 16. Be2 Rdf8 $17) 15... Rdf8 {[%emt 0:15:20]} 16. Qh6 {[%emt 0:24:30]} d4 {[%emt 0:09:35]} (16... Na5 $16 {kämpft weiter.}) 17. Qf4 {[%emt 0:07:46]} (17. O-O $18) 17... f6 $16 {[%emt 0:08:22]} 18. exf6 {[%emt 0:07:05]} (18. Nxd4 Nd5 (18... fxe5 19. Qh4 $11) 19. Qh4 (19. Qe4 $2 f5 $19) 19... Nxe5 $16) 18... Qxf4 {[%emt 0:00:35]} 19. Bxf4 {[%emt 0:00:06]} Rxf6 {[%emt 0:03:21]} 20. Bg3 {[%emt 0:01:42]} Nd5 {[%emt 0:03:46]} (20... Be8 $16 {ist wohl besser.}) 21. Be4 $2 {[%emt 0:14:30] Das Läuferpaar ist gut.} (21. O-O-O $18) 21... Nf4 {[%emt 0:02:08]} (21... Rg4 $11 22. Bd3 Nf4 23. Bxf4 Rgxf4) 22. O-O-O {[%emt 0:09:48]} e5 {[%emt 0:08:20]} (22... Nxg2 $2 23. Nxd4 e5 24. Bxc6 Rxc6 25. Nxc6 Bxc6 26. Bxe5 $18) 23. Bxf4 {[%emt 0:00:08]} Rxf4 {[%emt 0:00:28]} 24. Bd5 {[%emt 0:15:37]} (24. Rhe1 $1 $16) 24... Rd8 {[%emt 0:20:22]} 25. Rhe1 {[%emt 0:02:16][%cal Og2g3]} Kc7 {[%emt 0:01:43]} 26. Re4 {[%emt 0:00:25]} (26. Nxe5 Nxe5 (26... Rxf2 27. Bf3 $16) 27. Rxe5 Rxf2 $14) (26. h4 $16) 26... Rf5 {[%emt 0:02:16]} (26... Rff8 $11 {kam in Betracht.}) 27. Rde1 {[%emt 0:00:31]} (27. Rh4 $1 $16) 27... Kd6 $2 {[%emt 0:01:50]} (27... Rh8 $11) 28. Bxc6 $18 {[%emt 0:00:19]} Bxc6 {[%emt 0:00:54]} 29. Rxe5 {[%emt 0:00:02]} Rxe5 {[%emt 0:00:27]} (29... Rf4 {war nötig.}) 30. Nxe5 {[%emt 0:00:02][%mdl 4096] Endspiel. KRB-KRN} Bd5 {[%emt 0:01:04][%cal Od8h8] [#] Es drohte Nf7+} 31. f4 {[%emt 0:01:06]} (31. g3 $1 $18) 31... Rh8 $16 {[%emt 0:01:18]} 32. h3 {[%emt 0:00:08]} Be6 $2 {[%emt 0:01:34]} (32... b5 $16 {war einen Versuch wert.}) 33. Nf3 $18 {[%emt 0:00:12]} Bd5 {[%emt 0:00:33]} 34. Nxd4 {[%emt 0:01:27] Droht stark Nb5+.} Bxg2 {[%emt 0:00:14] [#]} 35. Rg1 $2 {[%emt 0:00:14]} (35. Nb5+ $1 $18 Kc6 36. Nxa7+ Kc5 37. Re5+ Bd5 38. Re3) 35... Rxh3 $1 $11 {[%emt 0:00:20]} 36. Nb5+ {[%emt 0:01:09]} (36. Rxg2 $2 Rh1+) (36. Nf5+ Kc5 $17) 36... Ke6 $2 {[%emt 0:01:04][%mdl 8192]} (36... Kc5 $11 {und Schwarz muss sich keine Sorgen machen.} 37. Nxa7 Re3) 37. Kb1 {[%emt 0:00:00]} (37. Rxg2 $2 Rh1+) (37. f5+ Kxf5 38. Nxa7 (38. Rxg2 $2 Rh1+) 38... Be4 $18) 37... Be4 {[%emt 0:00:58]} (37... Bd5 38. Re1+ (38. Nxa7 Bc4 $14) 38... Kf7 39. Nxa7 Bc4) 38. Re1 $18 {[%emt 0:00:46]} ({Jedoch nicht} 38. Nxa7 Rh5 39. Re1 Kf5) 38... Kd5 {[%emt 0:00:25]} 39. Nc7+ $2 {[%emt 0:00:30]} ({Vorzuziehen ist} 39. Nxa7 $18 {Und Nb5 würde nun gewinnen.} Rh2 40. Nb5 Bxc2+ (40... Rxc2 $2 {verliert.} 41. Rxe4 Rh2 42. a7 $18) 41. Ka1) 39... Kd4 $11 {[%emt 0:00:27]} 40. Ne6+ {[%emt 0:00:31]} Kd5 {[%emt 0:01:23]} 41. Nc7+ {[%emt 0:00:37][%mdl 32768] Gewichteter Fehlerwert: Weiß=0.54/Schwarz=0.54.  Verlustzug:     	---       	Schwarz=2     Gewinn verpasst:   	Weiß=3     	---        Fehler:       	Weiß=5     	Schwarz=7     Ungenau:       	Weiß=1     	Schwarz=1     OK:         	Weiß=12    	Schwarz=10    Bester:       	Weiß=2     	Schwarz=4     Stark:        	---       	Schwarz=1    . Zeitüberschreitung!?} (41. Ng5 $5 Rh1 $8 42. Rxh1 Bxh1 43. f5 $11) 1-0

[Event "28th Hit Open-A 2024"]
[Site "Nova Gorica"]
[Date "2024.01.28"]
[Round "4.13"]
[White "Plaskan, Jure"]
[Black "Capaliku, Aleks"]
[Result "1-0"]
[ECO "C65"]
[WhiteElo "2262"]
[BlackElo "1913"]
[Annotator "RC"]
[PlyCount "97"]
[EventDate "2024.01.22"]
[EventType "swiss"]
[EventCountry "SLO"]
[SourceTitle "playchess.com"]
[Source "ChessBase"]
[SourceQuality "1"]
[TimeControl "5400+30"]

1. e4 {[%emt 0:00:10]} e5 {[%emt 0:02:26]} 2. Nf3 {[%emt 0:00:11]} Nc6 {[%emt 0:00:04]} 3. Bb5 {[%emt 0:00:09]} Nf6 {[%emt 0:00:32]} 4. d3 {[%emt 0:00:09]} Bc5 {[%emt 0:00:27]} 5. Bxc6 {[%emt 0:00:06]} dxc6 {[%emt 0:00:05]} 6. O-O {[%emt 0:00:16]} Qe7 {[%emt 0:01:39]} 7. Nbd2 {[%emt 0:00:31]} b5 {[%emt 0:18:21]} 8. c3 {[%emt 0:04:55]} Bg4 {[%emt 0:01:43]} 9. Qc2 {[%emt 0:02:18]} O-O {[%emt 0:06:50]} 10. h3 {[%emt 0:11:10]} Bh5 {[%emt 0:03:49]} 11. Nh4 {[%emt 0:04:15]} Rad8 {[%emt 0:05:40]} 12. Nb3 {[%emt 0:09:39]} Bb6 {[%emt 0:03:18]} 13. Bg5 {[%emt 0:00:13]} c5 {[%emt 0:23:12]} 14. Nf5 {[%emt 0:08:26]} Qe6 {[%emt 0:04:54]} 15. c4 {[%emt 0:09:14]} Bg6 {[%emt 0:00:27]} 16. Ne3 {[%emt 0:02:13]} c6 {[%emt 0:06:49]} 17. Rad1 {[%emt 0:03:04]} Rc8 {[%emt 0:02:59]} 18. g4 {[%emt 0:25:50]} Nd7 {[%emt 0:02:00]} 19. Nc1 {[%emt 0:04:43]} f6 {[%emt 0:00:48]} 20. Bh4 {[%emt 0:00:02]} Bf7 {[%emt 0:00:23]} 21. Ne2 {[%emt 0:00:21]} g5 {[%emt 0:00:31]} 22. Bg3 {[%emt 0:00:06]} h5 {[%emt 0:01:08]} 23. Kg2 {[%emt 0:01:02]} h4 {[%emt 0:01:17]} 24. Bh2 {[%emt 0:00:11]} Rfd8 {[%emt 0:00:49]} 25. cxb5 {[%emt 0:02:41]} cxb5 {[%emt 0:00:03]} 26. Nc3 {[%emt 0:00:08]} c4 {[%emt 0:04:30]} 27. Nf5 {[%emt 0:02:14]} cxd3 {[%emt 0:05:22]} 28. Qxd3 {[%emt 0:00:08]} Nc5 {[%emt 0:00:45]} 29. Qf3 {[%emt 0:01:32]} Bg6 {[%emt 0:03:18]} 30. Nd5 {[%emt 0:05:55]} Bxf5 {[%emt 0:00:12]} 31. gxf5 {[%emt 0:00:13]} Qf7 {[%emt 0:00:41]} 32. Rg1 {[%emt 0:01:07]} Rd6 {[%emt 0:00:48]} 33. b4 {[%emt 0:01:31]} Na6 {[%emt 0:00:36]} 34. Qb3 {[%emt 0:00:28]} Kg7 {[%emt 0:00:24]} 35. Kh1 {[%emt 0:01:44]} Rc4 {[%emt 0:00:21]} 36. Qf3 {[%emt 0:01:03]} Bd4 {[%emt 0:00:21]} 37. a3 {[%emt 0:00:18]} Kh6 {[%emt 0:00:40]} 38. Ne3 {[%emt 0:00:17]} Rcc6 {[%emt 0:00:42]} 39. Ng4+ {[%emt 0:00:20]} Kg7 {[%emt 0:00:08]} 40. Rxd4 {[%emt 0:00:47]} exd4 {[%emt 0:00:55]} 41. Bxd6 {[%emt 0:00:19]} Rxd6 {[%emt 0:00:03]} 42. e5 {[%emt 0:00:09]} Qd5 {[%emt 0:00:33]} 43. Qxd5 {[%emt 0:01:16]} Rxd5 {[%emt 0:00:00]} 44. exf6+ {[%emt 0:00:21]} Kf7 {[%emt 0:00:17]} 45. Re1 {[%emt 0:00:27]} d3 {[%emt 0:00:34]} 46. Re7+ {[%emt 0:00:08]} Kf8 {[%emt 0:00:13]} 47. Ne5 {[%emt 0:00:09]} d2 {[%emt 0:01:51]} 48. Ng6+ {[%emt 0:00:06]} Kg8 {[%emt 0:00:06]} 49. Rg7# {[%emt 0:00:03]} 1-0

[Event "28th Hit Open-A 2024"]
[Site "Nova Gorica"]
[Date "2024.01.28"]
[Round "4.14"]
[White "Djuric, Stefan"]
[Black "Veselic, Maks"]
[Result "1-0"]
[ECO "B14"]
[WhiteElo "2220"]
[BlackElo "1874"]
[Annotator "TA"]
[PlyCount "101"]
[EventDate "2024.01.22"]
[EventType "swiss"]
[EventCountry "SLO"]
[SourceTitle "playchess.com"]
[Source "ChessBase"]
[SourceQuality "1"]
[TimeControl "5400+30"]

{[%evp 20,101,2,11,20,25,50,46,41,42,44,44,46,0,37,31,32,27,23,43,72,68,85,84,100,101,108,109,128,104,103,89,209,220,216,232,231,233,217,216,215,145,451,254,261,268,252,271,285,238,246,157,236,221,366,358,381,375,486,486,453,381,381,381,381,373,365,355,1056,420,482,477,475,468,602,596,617,610,578,572,610,448,582,571]} 1. c4 {[%emt 0:10:02]} Nf6 {[%emt 0:00:10]} 2. Nc3 {[%emt 0:00:07]} e6 {[%emt 0:00:11]} 3. Nf3 {[%emt 0:00:10]} d5 {[%emt 0:00:11]} 4. d4 {[%emt 0:00:03]} Bb4 {[%emt 0:00:13]} 5. e3 {[%emt 0:00:19]} O-O {[%emt 0:00:36]} 6. Bd3 {[%emt 0:00:23]} dxc4 {[%emt 0:01:04]} 7. Bxc4 {[%emt 0:00:03]} c5 {[%emt 0:00:07]} 8. O-O {[%emt 0:00:41]} cxd4 {[%emt 0:00:58]} 9. exd4 {[%emt 0:00:03]} Nc6 {[%emt 0:01:34]} 10. Bg5 {[%emt 0:00:20]} Be7 {[%emt 0:00:37]} 11. Re1 {[%emt 0:00:42]} Nd5 {[%emt 0:00:55]} 12. Bxd5 {[%emt 0:02:50]} Bxg5 {[%emt 0:02:43]} 13. Bxc6 {[%emt 0:05:18]} bxc6 {[%emt 0:00:06] White is slightly better.} 14. Nxg5 {[%emt 0:06:25]} Qxg5 {[%emt 0:00:09]} 15. Ne4 {[%emt 0:01:01]} Qd5 {[%emt 0:00:53]} 16. Qd3 {[%emt 0:18:04]} (16. b3 $14) 16... e5 {[%emt 0:13:48]} 17. Ng5 {[%emt 0:00:23][%csl Gg5,LRe5,LRh7][%cal Rd3h7]} e4 $1 {[%emt 0:00:49]} 18. Nxe4 {[%emt 0:01:53]} (18. Qxe4 $2 {loses.} Qxg5 19. Qxc6 Be6 $19) 18... Bf5 {[%emt 0:00:19]} 19. Qf3 {[%emt 0:02:10]} Bg6 {[%emt 0:04:17]} 20. Nc3 {[%emt 0:00:54]} Qxd4 {[%emt 0:01:33]} 21. Qxc6 {[%emt 0:00:03]} Rab8 {[%emt 0:03:34]} 22. Rad1 {[%emt 0:00:13][%cal Ba1d1,Bd1d5,Bd5e5,Be5e6][%mdl 32]} Qg4 {[%emt 0:03:23]} 23. h3 {[%emt 0:00:56]} Qg5 {[%emt 0:00:44]} 24. Rd5 {[%emt 0:00:54]} Qf4 {[%emt 0:01:56]} 25. Qc5 {[%emt 0:04:56] White is more active.} Rfc8 {[%emt 0:05:00]} (25... Rfe8 $16 {was called for.} 26. Rxe8+ Rxe8) 26. Qxa7 $18 {[%emt 0:01:19]} Rxb2 {[%emt 0:01:20][%cal Oh7h6] [#]} 27. Rde5 $1 {[%emt 0:00:14] Intending Re8+ and mate.} f6 {[%emt 0:03:46]} 28. Nd5 {[%emt 0:12:32]} Qc4 {[%emt 0:06:14]} 29. Ne7+ {[%emt 0:13:07]} Kh8 {[%emt 0:00:56]} 30. Re6 $40 {[%emt 0:08:19][%mdl 128] White has strong attack.} Rd8 {[%emt 0:11:26][%mdl 8192] This costs Black the game.} (30... Rcb8 $16 {is tougher.}) 31. a4 {[%emt 0:01:30]} (31. Nxg6+ $142 hxg6 32. R1e4 Qc1+ 33. Kh2) 31... Bf7 {[%emt 0:01:58] [#]} 32. Nf5 $1 {[%emt 0:00:27][%cal Oe6e8,Be7f5,Bf5e3,Be3d5][%mdl 32] Re8+! would kill now.} Rb1 {[%emt 0:02:52]} 33. Rxb1 {[%emt 0:04:24][%cal Be1b1,Bb1b7,Bb7b4][%mdl 32]} (33. Qxf7 $2 {perishes.} Rxe1+ 34. Kh2 Qf4+ (34... Rxe6 35. Qxg7#) 35. Ng3 Qxf2 36. Rxe1 Qxe1 $19) 33... Qxe6 {[%emt 0:00:02]} 34. Ne3 {[%emt 0:00:02]} Bg6 {[%emt 0:03:47]} 35. Qc7 {[%emt 0:00:42]} Re8 {[%emt 0:01:29]} (35... Qc8 $16 36. Qxc8 Rxc8) 36. Rb7 {[%emt 0:01:01]} Qg8 {[%emt 0:01:00]} (36... Rg8 {was necessary.} 37. a5 h5) 37. a5 {[%emt 0:00:59]} Ra8 {[%emt 0:00:31] [#]} 38. Nd5 $1 {[%emt 0:01:16][%mdl 512]} Be4 {[%emt 0:00:53]} (38... Bd3 39. Qd6) 39. Ne7 {[%emt 0:00:08]} Qf8 {[%emt 0:00:42]} 40. Rb4 {[%emt 0:00:29]} Bd3 {[%emt 0:00:39]} 41. Nc6 {[%emt 0:01:51]} Rc8 {[%emt 0:01:47]} 42. Rb8 {[%emt 0:00:31]} Ba6 {[%emt 0:00:43]} 43. Qb6 {[%emt 0:01:36][%cal Ob6a6] Black is weak on the dark squares} Qe8 $2 {[%emt 0:01:36]} (43... Bd3 44. Qb7 Bf5 45. Rxc8 Qxc8) 44. Rxc8 {[%emt 0:00:51]} (44. Qxa6 $142 Rxb8 45. Nxb8) 44... Bxc8 {[%emt 0:00:27]} 45. a6 {[%emt 0:00:28] White is clearly winning.} Bxa6 {[%emt 0:00:48]} 46. Qxa6 {[%emt 0:00:04]} h6 {[%emt 0:00:10]} 47. Qb6 {[%emt 0:00:10]} Qe1+ {[%emt 0:00:13]} 48. Kh2 {[%emt 0:00:05] And now Qd8+ would win.} Qe4 {[%emt 0:00:08]} 49. Qc7 {[%emt 0:00:23]} Qc2 {[%emt 0:00:25]} 50. Qd8+ {[%emt 0:00:49]} Kh7 {[%emt 0:00:01]} 51. Ne7 {[%emt 0:00:00] Weighted Error Value: White=0.27 (precise) /Black=0.35.  Loses game:     	---       	Black=1      Mistake:       	White=3     	Black=4      Inaccurate:     	White=2     	Black=2      OK:         	White=18    	Black=8      Best:        	White=4     	Black=4      Strong:       	White=2     	Black=1} 1-0

[Event "28th Hit Open-A 2024"]
[Site "Nova Gorica"]
[Date "2024.01.28"]
[Round "4.15"]
[White "Budai, Leonardo"]
[Black "Garsky, Vladyslav"]
[Result "1-0"]
[ECO "C55"]
[WhiteElo "1847"]
[BlackElo "2186"]
[Annotator "RC"]
[PlyCount "125"]
[EventDate "2024.01.22"]
[EventType "swiss"]
[EventCountry "SLO"]
[SourceTitle "playchess.com"]
[Source "ChessBase"]
[SourceQuality "1"]
[TimeControl "5400+30"]

1. e4 {[%emt 0:00:01]} e5 {[%emt 0:01:51]} 2. Nf3 {[%emt 0:00:13]} Nc6 {[%emt 0:00:40]} 3. Bc4 {[%emt 0:00:16]} Nf6 {[%emt 0:01:38]} 4. d3 {[%emt 0:00:23]} h6 {[%emt 0:00:54]} 5. Nc3 {[%emt 0:01:11]} d6 {[%emt 0:02:45]} 6. d4 {[%emt 0:15:38]} Bg4 {[%emt 0:15:21]} 7. d5 {[%emt 0:07:24]} Nd4 {[%emt 0:03:44]} 8. Be3 {[%emt 0:05:04]} Nxf3+ {[%emt 0:01:09]} 9. gxf3 {[%emt 0:00:10]} Bd7 {[%emt 0:06:57]} 10. Qd2 {[%emt 0:01:55]} Nh5 {[%emt 0:03:50]} 11. O-O-O {[%emt 0:17:25]} a6 {[%emt 0:01:47]} 12. Ne2 {[%emt 0:03:14]} Bh3 {[%emt 0:22:43]} 13. Rhg1 {[%emt 0:21:36]} g5 {[%emt 0:04:01]} 14. Ng3 {[%emt 0:01:32]} Ng7 {[%emt 0:01:42]} 15. Bf1 {[%emt 0:09:33]} Qd7 {[%emt 0:00:37]} 16. Qb4 {[%emt 0:01:20]} b6 {[%emt 0:03:08]} 17. Qc3 {[%emt 0:00:57]} Bxf1 {[%emt 0:05:23]} 18. Rdxf1 {[%emt 0:00:30]} f6 {[%emt 0:04:12]} 19. Rh1 {[%emt 0:03:38]} Be7 {[%emt 0:00:11]} 20. h4 {[%emt 0:00:39]} Kf7 {[%emt 0:00:18]} 21. Qd3 {[%emt 0:02:47]} gxh4 {[%emt 0:02:16]} 22. Nf5 {[%emt 0:00:39]} Nxf5 {[%emt 0:00:05]} 23. exf5 {[%emt 0:00:03]} Qa4 {[%emt 0:01:22]} 24. Kb1 {[%emt 0:00:22]} Rag8 {[%emt 0:00:44]} 25. b3 {[%emt 0:00:48]} Qd7 {[%emt 0:01:37]} 26. Rxh4 {[%emt 0:00:21]} Rh7 {[%emt 0:01:53]} 27. Rh5 {[%emt 0:00:46]} b5 {[%emt 0:00:53]} 28. Rfh1 {[%emt 0:00:20]} Bf8 {[%emt 0:00:24]} 29. Kb2 {[%emt 0:01:14]} c6 {[%emt 0:01:39]} 30. Qe4 {[%emt 0:00:21]} c5 {[%emt 0:00:15]} 31. R1h4 {[%emt 0:02:41]} Qc7 {[%emt 0:01:05]} 32. Bxh6 {[%emt 0:03:09]} Bxh6 {[%emt 0:01:34]} 33. Rxh6 {[%emt 0:00:00]} Rhg7 {[%emt 0:00:33]} 34. Rg4 {[%emt 0:00:00]} Rxg4 {[%emt 0:01:31]} 35. fxg4 {[%emt 0:00:00]} Rg7 {[%emt 0:00:09]} 36. Qe2 {[%emt 0:01:17]} Qa5 {[%emt 0:00:19]} 37. c3 {[%emt 0:00:35]} Qb6 {[%emt 0:02:20]} 38. Rh4 {[%emt 0:00:31]} a5 {[%emt 0:00:38]} 39. Qe3 {[%emt 0:00:17]} Qb7 {[%emt 0:00:31]} 40. Qd3 {[%emt 0:00:30]} c4 {[%emt 0:00:14]} 41. Qe3 {[%emt 0:00:37]} Kg8 {[%emt 0:01:12]} 42. Qd2 {[%emt 0:00:57]} Qb6 {[%emt 0:00:35]} 43. Qe3 {[%emt 0:00:26]} Qc7 {[%emt 0:00:07]} 44. f3 {[%emt 0:00:15]} b4 {[%emt 0:00:58]} 45. Rh6 {[%emt 0:00:26]} Rf7 {[%emt 0:00:55]} 46. Rg6+ {[%emt 0:00:06]} Kf8 {[%emt 0:00:06]} 47. Qh6+ {[%emt 0:00:38]} Ke7 {[%emt 0:00:05]} 48. Qe3 {[%emt 0:00:09]} cxb3 {[%emt 0:00:22]} 49. axb3 {[%emt 0:00:36]} Rh7 {[%emt 0:02:30]} 50. c4 {[%emt 0:00:20]} Rh2+ {[%emt 0:01:54]} 51. Kc1 {[%emt 0:01:16]} Rh1+ {[%emt 0:01:32]} 52. Kd2 {[%emt 0:00:30]} Rh2+ {[%emt 0:00:05]} 53. Kd1 {[%emt 0:00:19]} Rh1+ {[%emt 0:01:16]} 54. Ke2 {[%emt 0:00:16]} Rh2+ {[%emt 0:00:02]} 55. Ke1 {[%emt 0:00:34]} Qc5 {[%emt 0:00:33]} 56. Rg7+ {[%emt 0:00:26]} Ke8 {[%emt 0:00:26]} 57. Qxc5 {[%emt 0:00:05]} dxc5 {[%emt 0:00:02]} 58. Ra7 {[%emt 0:00:13]} Ra2 {[%emt 0:00:15]} 59. d6 {[%emt 0:00:54]} a4 {[%emt 0:00:56]} 60. Rxa4 {[%emt 0:00:43]} Rb2 {[%emt 0:00:02]} 61. g5 {[%emt 0:00:19]} Rxb3 {[%emt 0:00:48]} 62. g6 {[%emt 0:00:12]} Rxf3 {[%emt 0:00:09]} 63. Ra8+ {[%emt 0:00:14]} 1-0